bitfinex/quotes_ETHUSD_20240817
["timestamp","ask_amount","ask_price","bid_price","bid_amount"]
[1723864135326,2.35669922,2603.5,2603.0,3.84159]
[1723864135776,1.327,2603.4,2603.0,3.84159]
[1723864136067,1.40124455,2603.4,2603.0,3.84159]
[1723864136458,1.40124455,2603.4,2602.8,7.32]
[1723864136459,7.4509,2603.2,2602.8,7.32]
[1723864136653,1.327,2603.0,2602.8,7.32]
[1723864136838,1.327,2603.0,2602.6,3.8422]
[1723864137164,1.327,2603.0,2602.6,7.68443]
[1723864137165,0.07389402,2602.9,2602.6,7.68443]
[1723864137339,0.07389402,2602.9,2602.6,3.8422]
[1723864138038,0.07389402,2602.9,2602.6,7.68443]
[1723864138371,1.327,2603.0,2602.6,3.8422]
[1723864138552,0.07383852,2602.8,2602.6,3.8422]
[1723864138759,1.327,2603.0,2602.6,3.8422]
[1723864138956,0.07378382,2602.7,2602.6,3.8422]
[1723864139260,1.327,2603.0,2602.6,6.8422]
[1723864139429,0.07378382,2602.7,2602.6,3.8422]
[1723864139628,2.072097,2603.0,2602.6,3.8422]
[1723864139853,0.07377179,2602.7,2602.6,3.8422]
[1723864140056,2.072097,2603.0,2602.6,3.8422]
[1723864140270,2.2824,2602.9,2602.5,3.84242]
[1723864140432,2.9477923,2602.9,2602.5,3.84242]
[1723864141134,2.9477923,2602.9,2602.4,11.1625]
[1723864141332,2.9477923,2602.9,2602.4,3.8425]
[1723864141333,1.327,2602.8,2602.4,3.8425]
[1723864141537,0.50136568,2602.7,2602.4,3.8425]
[1723864141732,0.07388645,2602.7,2602.4,3.8425]
[1723864142109,1.327,2602.8,2602.4,3.8425]
[1723864142244,0.07382128,2602.6,2602.4,3.8425]
[1723864142445,1.327,2602.8,2602.4,3.8425]
[1723864142653,0.07376658,2602.5,2602.4,3.8425]
[1723864143280,1.327,2602.8,2602.4,3.8425]
[1723864143450,0.07376658,2602.5,2602.4,3.8425]
[1723864143651,1.327,2602.8,2602.4,3.8425]
[1723864143852,0.07376658,2602.5,2602.4,3.8425]
[1723864144046,1.327,2602.8,2602.4,3.8425]
[1723864144380,6.82406,2603.1,2602.5,2.2931]
[1723864144547,0.07382932,2602.7,2602.6,3.84229]
[1723864144749,1.327,2603.0,2602.6,3.84229]
[1723864144979,0.07382932,2602.7,2602.6,3.84229]
[1723864145139,1.327,2603.0,2602.6,3.84229]
[1723864145341,0.0739387,2602.9,2602.6,3.84229]
[1723864151271,0.0739387,2602.9,2602.4,7.68496]
[1723864151471,0.0739387,2602.9,2602.5,3.84244]
[1723864152473,3.739,2602.8,2602.4,3.84246]
[1723864152911,0.07383414,2602.7,2602.4,3.84246]
[1723864153315,1.327,2602.8,2602.4,7.68497]
[1723864153611,0.07383414,2602.7,2602.4,7.68496]
[1723864153813,3.84187,2602.9,2602.4,9.96036]
[1723864154024,0.07377945,2602.6,2602.4,9.96036]
[1723864154311,3.84187,2602.9,2602.4,9.96036]
[1723864154516,3.84187,2602.9,2602.4,6.11786]
[1723864154692,0.07388884,2602.8,2602.4,6.11786]
[1723864155598,0.07388884,2602.8,2602.5,3.84244]
[1723864155789,7.58072,2603.0,2602.5,3.84244]
[1723864155999,0.07383414,2602.7,2602.4,6.11786]
[1723864156190,0.07383414,2602.7,2602.4,3.84246]
[1723864156423,1.327,2602.8,2602.4,3.84246]
[1723864156588,0.07378588,2602.6,2602.4,3.84246]
[1723864156791,1.327,2602.8,2602.4,3.84246]
[1723864156986,0.07373118,2602.5,2602.4,3.84246]
[1723864157233,1.327,2602.8,2602.4,3.84246]
[1723864157434,0.07373118,2602.5,2602.4,3.84246]
[1723864157733,1.327,2602.8,2602.4,3.84246]
[1723864157904,0.07373118,2602.5,2602.4,3.84246]
[1723864158110,1.327,2602.8,2602.4,3.84246]
[1723864158294,0.07373118,2602.5,2602.4,3.84246]
[1723864158499,1.327,2602.8,2602.5,3.84241]
[1723864164435,3.739,2603.0,2602.6,3.84227]
[1723864164788,3.739,2603.0,2602.6,3.84223]
[1723864165461,1.327,2602.8,2602.4,3.8425]
[1723864165664,2.412,2602.7,2602.4,3.8425]
[1723864167068,0.07381831,2602.6,2602.4,3.8425]
[1723864168157,0.06581831,2602.6,2602.4,3.8425]
[1723864169769,0.06581831,2602.6,2602.2,7.68562]
[1723864170173,2.412,2602.7,2602.2,7.68562]
[1723864170373,0.07355245,2602.6,2602.3,3.84273]
[1723864170687,2.412,2602.7,2602.3,3.84273]
[1723864171073,0.07355245,2602.6,2602.3,3.84273]
[1723864171473,2.412,2602.7,2602.3,3.84273]
[1723864171866,0.07355245,2602.6,2602.3,3.84273]
[1723864172440,2.412,2602.7,2602.3,3.84273]
[1723864172702,0.07349775,2602.5,2602.3,3.84273]
[1723864172899,2.412,2602.7,2602.3,3.84273]
[1723864173212,1.327,2602.6,2602.2,3.84279]
[1723864173378,1.40055245,2602.6,2602.2,3.84279]
[1723864174898,1.40055245,2602.6,2602.2,7.68561]
[1723864175205,1.40055245,2602.6,2602.2,3.84279]
[1723864176071,1.40055245,2602.6,2602.3,3.84273]
[1723864177008,1.40055245,2602.6,2602.2,7.6856]
[1723864178367,1.40055245,2602.6,2602.2,7.68561]
[1723864179402,1.40055245,2602.6,2602.2,3.84279]
[1723864181796,2.281,2602.3,2602.1,0.1005258]
[1723864182112,0.07331752,2602.2,2602.1,0.1005258]
[1723864182820,1.327,2602.2,2602.1,0.1005258]
[1723864183164,5.24321752,2602.2,2602.1,0.1005258]
[1723864183368,6.44990027,2602.2,2602.1,0.1005258]
[1723864185610,2.60700027,2602.2,2602.1,0.1005258]
[1723864188417,1.28000027,2602.2,2602.1,0.1005258]
[1723864188721,0.07331752,2602.2,2602.1,0.1005258]
[1723864189135,1.327,2602.6,2602.1,0.1005258]
[1723864189281,0.0727428,2602.2,2602.1,3.9435658]
[1723864189480,1.327,2602.6,2602.1,3.9435658]
[1723864189716,1.327,2602.6,2602.1,4.97502588]
[1723864190081,0.07290694,2602.5,2602.1,4.97502588]
[1723864190899,0.07290694,2602.5,2602.1,1.13198588]
[1723864191114,0.07290694,2602.5,2602.1,0.1005258]
[1723864191310,1.327,2602.4,2602.1,0.1005258]
[1723864191626,0.07279752,2602.3,2602.1,0.1005258]
[1723864194766,1.327,2602.2,2602.1,0.1005258]
[1723864195032,1.39981505,2602.2,2602.1,0.1005258]
[1723864203358,0.07281505,2602.2,2602.1,0.1005258]
[1723864203716,1.327,2602.3,2602.1,0.1005258]
[1723864204025,0.07167993,2602.2,2602.1,0.1005258]
[1723864204243,5.16976,2602.3,2602.1,0.1005258]
[1723864204535,0.07167414,2602.2,2602.1,0.1005258]
[1723864204909,5.16976,2602.3,2602.1,0.1005258]
[1723864205248,0.07167414,2602.2,2602.1,0.1005258]
[1723864205451,5.16976,2602.3,2602.1,0.1005258]
[1723864205652,0.07167414,2602.2,2602.1,0.1005258]
[1723864206453,2.2851,2602.2,2602.1,0.1005258]
[1723864206628,2.35677414,2602.2,2602.1,0.1005258]
[1723864209250,0.07167414,2602.2,2602.1,0.1005258]
[1723864209438,6.369501,2602.3,2602.1,0.1005258]
[1723864209821,1.0092333,2602.2,2602.1,2.4515258]
[1723864209938,0.0716532,2602.2,2602.1,2.4515258]
[1723864210328,5.16975,2602.3,2602.1,0.1005258]
[1723864210572,6.140979,2602.3,2602.1,0.1005258]
[1723864210728,0.07164757,2602.2,2602.1,0.1005258]
[1723864210930,6.140979,2602.3,2602.1,0.1005258]
[1723864211248,0.07164757,2602.2,2602.1,0.1005258]
[1723864211445,6.140979,2602.3,2602.1,0.1005258]
[1723864211774,0.07164757,2602.2,2602.1,0.1005258]
[1723864212158,6.140979,2602.3,2602.1,0.1005258]
[1723864212477,0.07164757,2602.2,2602.1,0.1005258]
[1723864213177,6.140979,2602.3,2602.1,0.1005258]
[1723864213357,0.69126266,2602.2,2602.1,0.1005258]
[1723864213561,0.76291023,2602.2,2602.1,0.1005258]
[1723864217553,0.07164757,2602.2,2602.1,0.1005258]
[1723864217932,1.327,2602.3,2602.1,0.1005258]
[1723864218276,0.07155203,2602.2,2602.1,0.1005258]
[1723864218477,1.327,2602.3,2602.1,0.1005258]
[1723864218774,0.07152794,2602.2,2602.1,0.1005258]
[1723864219289,0.07150386,2602.2,2602.1,0.1005258]
[1723864219572,1.327,2602.3,2602.1,0.1005258]
[1723864219770,0.07150386,2602.2,2602.1,0.1005258]
[1723864220130,1.327,2602.3,2602.1,0.1005258]
[1723864220357,0.07150386,2602.2,2602.1,0.1005258]
[1723864220759,1.327,2602.3,2602.1,0.1005258]
[1723864220970,0.07150386,2602.2,2602.1,0.1005258]
[1723864221402,1.327,2602.3,2602.1,0.1005258]
[1723864221581,0.07150386,2602.2,2602.1,0.1005258]
[1723864221967,1.327,2602.3,2602.1,0.1005258]
[1723864222173,0.07150386,2602.2,2602.1,0.1005258]
[1723864222999,1.327,2602.3,2602.1,0.1005258]
[1723864223202,0.07150386,2602.2,2602.1,0.1005258]
[1723864223557,1.327,2602.3,2602.1,0.1005258]
[1723864223759,0.07150386,2602.2,2602.1,6.2945658]
[1723864224004,0.07150386,2602.2,2602.1,10.76706238]
[1723864224205,5.16925,2602.7,2602.3,2.351]
[1723864224406,1.327,2602.5,2602.3,2.351]
[1723864224762,0.07162939,2602.4,2602.3,2.351]
[1723864225383,1.327,2602.6,2602.3,2.351]
[1723864225892,0.07163594,2602.5,2602.3,2.351]
[1723864226208,0.07163594,2602.5,2602.3,6.19374]
[1723864229423,0.07163594,2602.5,2602.3,2.351]
[1723864232131,0.11124412,2602.5,2602.3,2.351]
[1723864232447,1.327,2602.4,2602.3,2.351]
[1723864232632,1.327,2602.4,2602.1,0.1005258]
[1723864232793,1.327,2602.2,2602.1,0.1005258]
[1723864233214,1.43828305,2602.2,2602.1,0.1005258]
[1723864235098,0.11128305,2602.2,2602.1,0.1005258]
[1723864235303,5.1696,2602.4,2602.1,0.1005258]
[1723864235501,0.11128305,2602.2,2602.1,0.1005258]
[1723864235704,5.1696,2602.4,2602.1,0.1005258]
[1723864236003,0.11128305,2602.2,2602.1,0.1005258]
[1723864236234,5.1696,2602.4,2602.1,0.1005258]
[1723864236540,1.327,2602.4,2602.1,0.1005258]
[1723864236714,0.11133624,2602.3,2602.2,2.3998]
[1723864237036,1.327,2602.6,2602.2,2.3998]
[1723864237238,0.11132094,2602.3,2602.2,2.3998]
[1723864237535,1.327,2602.6,2602.2,2.3998]
[1723864237829,0.11132094,2602.3,2602.2,2.3998]
[1723864238032,5.16932,2602.6,2602.2,2.3998]
[1723864238412,0.11142731,2602.5,2602.2,2.3998]
[1723864238813,1.327,2602.4,2602.2,2.3998]
[1723864239339,0.11132094,2602.3,2602.1,3.9434258]
[1723864240138,0.11132094,2602.3,2602.1,0.1005258]
[1723864243752,1.327,2602.2,2602.1,0.1005258]
[1723864243926,1.43818582,2602.2,2602.1,0.1005258]
[1723864245601,0.11118582,2602.2,2602.1,0.1005258]
[1723864246003,1.327,2602.4,2602.1,0.1005258]
[1723864246202,0.11118582,2602.2,2602.1,0.1005258]
[1723864246430,1.327,2602.4,2602.1,0.1005258]
[1723864246649,1.327,2602.6,2602.2,2.3998]
[1723864247341,5.16932,2602.6,2602.2,2.3998]
[1723864248419,0.11135395,2602.5,2602.2,2.3998]
[1723864249740,0.11135395,2602.5,2602.2,6.24259]
[1723864252538,0.11135395,2602.5,2602.3,3.84273]
[1723864252749,1.327,2602.6,2602.4,2.2958]
[1723864257771,5.41886489,2603.1,2602.2,3.84279]
[1723864257772,6.94882,2603.4,2602.3,3.84273]
[1723864258055,1.327,2603.3,2602.9,6.13763]
[1723864258227,1.327,2603.3,2602.9,2.2958]
[1723864259376,1.327,2603.1,2602.4,9.13831]
[1723864259541,1.327,2602.7,2602.4,2.2958]
[1723864260063,0.10475388,2602.6,2602.4,2.2958]
[1723864260231,0.10475388,2602.6,2602.4,3.293935]
[1723864261244,0.10475388,2602.6,2602.4,7.136525]
[1723864264355,0.10475388,2602.6,2602.4,10.979045]
[1723864264564,5.16895,2602.9,2602.4,7.136455]
[1723864264752,0.10473854,2602.5,2602.4,6.13832]
[1723864264932,5.16895,2602.9,2602.4,6.13832]
[1723864265134,0.10473854,2602.5,2602.4,6.13832]
[1723864265466,5.16895,2602.9,2602.4,6.13832]
[1723864265467,1.327,2602.9,2602.4,6.13832]
[1723864265765,1.327,2602.9,2602.5,3.84244]
[1723864265975,0.1048981,2602.8,2602.5,7.68475]
[1723864266279,0.1048981,2602.8,2602.6,2.2958]
[1723864266661,1.327,2603.1,2602.6,2.2958]
[1723864266964,1.327,2603.1,2602.6,6.13799]
[1723864267165,0.10500525,2603.0,2602.7,3.84216]
[1723864268983,0.63235577,2603.0,2602.6,2.2958]
[1723864269141,1.327,2602.9,2602.6,2.2958]
[1723864269338,1.43195207,2602.9,2602.6,2.2958]
[1723864273991,1.43195207,2602.9,2602.5,3.84231]
[1723864275749,1.43195207,2602.9,2602.6,3.8423]
[1723864276099,0.10495207,2602.9,2602.6,4.846221]
[1723864276385,1.327,2603.1,2602.7,6.19667]
[1723864276591,1.327,2603.1,2602.8,3.84201]
[1723864276771,1.327,2603.1,2602.7,10.03875]
[1723864278396,0.10500685,2603.0,2602.7,6.19667]
[1723864278593,0.10500685,2603.0,2602.8,3.842]
[1723864278751,0.10500685,2603.0,2602.7,6.19667]
[1723864281449,0.10500685,2603.0,2602.9,6.19646]
[1723864281649,0.10500685,2603.0,2602.9,10.03832]
[1723864281893,1.327,2603.3,2603.0,3.84164]
[1723864285068,6.22978,2603.9,2603.3,3.84116]
[1723864285288,1.327,2603.7,2603.3,3.84116]
[1723864290389,1.327,2603.7,2603.3,4.844883]
[1723864293366,0.10557258,2603.6,2603.3,4.844883]
[1723864294266,0.10557258,2603.6,2603.4,2.3509]
[1723864294613,1.327,2603.6,2603.4,2.3509]
[1723864294822,0.10556537,2603.5,2603.4,2.3509]
[1723864298218,0.10556537,2603.5,2603.0,2.3509]
[1723864298509,1.327,2603.4,2603.1,3.84157]
[1723864298881,0.10548247,2603.3,2603.1,3.84157]
[1723864303198,0.10548247,2603.3,2603.0,2.3509]
[1723864303407,1.327,2603.2,2602.9,3.84176]
[1723864303640,1.43254388,2603.2,2602.7,10.03504]
[1723864303813,1.43254388,2603.2,2602.8,3.84198]
[1723864306131,6.08303999,2603.2,2602.7,6.19291]
[1723864306545,6.08303999,2603.2,2602.5,3.84239]
[1723864306546,1.327,2603.0,2602.5,6.19324]
[1723864306717,1.327,2603.0,2602.6,3.84229]
[1723864307044,0.10537394,2602.9,2602.6,3.84229]
[1723864311029,0.10537394,2602.9,2602.7,3.84215]
[1723864311327,0.10537394,2602.9,2602.8,10.14932]
[1723864311543,1.327,2603.3,2602.9,3.84175]
[1723864311748,0.10541006,2603.2,2602.9,3.84175]
[1723864311910,1.327,2603.3,2602.9,3.84175]
[1723864312110,0.10550121,2603.2,2602.9,3.84175]
[1723864312316,1.327,2603.3,2602.9,3.84175]
[1723864312553,0.10550121,2603.2,2602.9,3.84175]
[1723864312727,1.327,2603.3,2602.9,3.84175]
[1723864312910,0.10550121,2603.2,2602.9,3.84175]
[1723864313114,1.327,2603.3,2602.9,3.84175]
[1723864313465,0.10550121,2603.2,2602.9,3.84175]
[1723864313759,1.327,2603.3,2602.9,3.84175]
[1723864313915,0.10550121,2603.2,2602.8,6.30731]
[1723864314112,3.84232,2602.6,2602.2,2.4653]
[1723864314321,1.327,2602.5,2602.1,3.9434558]
[1723864314513,1.43186868,2602.5,2602.2,3.84289]
[1723864314954,1.43186868,2602.5,2602.1,3.9435458]
[1723864318384,1.95928855,2602.5,2602.1,3.9435458]
[1723864318886,2.4707,2602.4,2602.1,0.1005258]
[1723864319273,0.1049246,2602.3,2602.1,0.1005258]
[1723864325398,1.327,2602.5,2602.1,3.9435058]
[1723864325570,0.10492465,2602.4,2602.3,2.4653]
[1723864325775,1.327,2602.7,2602.3,2.4653]
[1723864325776,1.756188,2602.7,2602.3,2.4653]
[1723864325986,0.10503102,2602.6,2602.3,2.4653]
[1723864331089,0.10503102,2602.6,2602.4,3.84251]
[1723864331522,1.327,2602.8,2602.4,3.84251]
[1723864331715,0.1049907,2602.5,2602.4,3.84251]
[1723864331888,1.327,2602.8,2602.3,10.15056]
[1723864332090,0.1049907,2602.5,2602.3,10.15056]
[1723864332292,2.545137,2602.8,2602.3,10.15056]
[1723864332815,0.10510353,2602.7,2602.3,10.15056]
[1723864333024,2.545137,2602.8,2602.3,10.15056]
[1723864333190,0.10510353,2602.7,2602.3,6.3079]
[1723864333523,0.10510353,2602.7,2602.1,0.1005258]
[1723864333524,1.327,2602.6,2602.1,0.1005258]
[1723864333686,3.84435035,2602.6,2602.1,0.1005258]
[1723864334998,7.68667035,2602.6,2602.1,3.9434558]
[1723864335246,2.29733149,2602.6,2602.1,3.9434558]
[1723864335434,1.43205035,2602.6,2602.3,2.4236]
[1723864338230,1.43205035,2602.6,2602.1,6.3670558]
[1723864340841,1.43205035,2602.6,2602.1,10.2100258]
[1723864341001,1.43205035,2602.6,2602.1,6.3670558]
[1723864343162,1.43205035,2602.6,2602.1,3.9434558]
[1723864343163,1.327,2602.4,2602.1,3.9434558]
[1723864343451,3.7393,2602.4,2602.1,0.1005258]
[1723864343615,0.10491178,2602.3,2602.1,0.1005258]
[1723864345713,5.1699,2602.2,2602.1,0.1005258]
[1723864345945,7.5822,2602.2,2602.1,0.1005258]
[1723864346258,7.68711038,2602.2,2602.1,0.1005258]
[1723864346557,11.53001038,2602.2,2602.1,0.1005258]
[1723864364869,15.92291038,2602.2,2602.1,0.1005258]
[1723864365065,17.96947942,2602.2,2602.1,0.1005258]
[1723864365774,12.79957942,2602.2,2602.1,0.1005258]
[1723864365978,13.57657942,2602.2,2602.1,0.1005258]
[1723864367491,14.12657942,2602.2,2602.1,0.1005258]
[1723864367811,17.96947942,2602.2,2602.1,0.1005258]
[1723864368989,14.12657942,2602.2,2602.1,0.1005258]
[1723864369158,17.96947942,2602.2,2602.1,0.1005258]
[1723864370604,14.12657942,2602.2,2602.1,0.1005258]
[1723864375960,11.71427942,2602.2,2602.1,0.1005258]
[1723864378845,12.31733022,2602.2,2602.1,0.1005258]
[1723864381704,16.36933022,2602.2,2602.1,0.1005258]
[1723864382010,12.31733022,2602.2,2602.1,0.1005258]
[1723864382857,11.76733022,2602.2,2602.1,2.4908258]
[1723864383081,9.72076118,2602.2,2602.1,2.4908258]
[1723864384797,9.72076118,2602.2,2602.1,0.1005258]
[1723864389417,15.97907474,2602.2,2602.1,0.1005258]
[1723864390217,13.56366118,2602.2,2602.1,0.1005258]
[1723864390531,15.49729555,2602.2,2602.1,0.1005258]
[1723864390838,16.04729555,2602.2,2602.1,0.1005258]
[1723864391407,18.86527804,2602.2,2602.1,0.1005258]
[1723864392419,21.11997804,2602.2,2602.1,0.1005258]
[1723864392729,21.12316703,2602.2,2602.1,0.1005258]
[1723864392909,21.12311845,2602.2,2602.1,0.1005258]
[1723864393223,21.12346538,2602.2,2602.1,0.1005258]
[1723864394030,18.30199555,2602.2,2602.1,0.1005258]
[1723864394592,21.12326462,2602.2,2602.1,0.1005258]
[1723864395939,8.38786,2601.5,2601.4,2.4909]
[1723864396230,8.38786,2601.5,2601.2,2.4909]
[1723864396231,3.84422,2601.4,2601.2,2.4909]
[1723864396396,1.327,2601.3,2601.2,2.4909]
[1723864396591,1.42506366,2601.3,2601.2,2.4909]
[1723864396802,5.26929366,2601.3,2601.2,2.4909]
[1723864398656,5.26929366,2601.3,2600.8,2.4909]
[1723864398657,0.7,2601.1,2600.8,2.4909]
[1723864398940,5.17191,2600.9,2600.8,2.4909]
[1723864399318,5.26810282,2600.9,2600.8,2.4909]
[1723864399941,3.84497,2600.8,2600.4,2.4909]
[1723864400141,1.327,2600.6,2600.4,2.4909]
[1723864402603,3.84497,2600.8,2600.4,2.4909]
[1723864402803,5.17197,2600.8,2600.4,2.4909]
[1723864403200,1.327,2600.6,2600.4,2.4909]
[1723864403624,0.09591477,2600.5,2600.4,2.4909]
[1723864404305,5.17197,2600.8,2600.4,2.4909]
[1723864404507,0.09595729,2600.7,2600.4,2.4909]
[1723864404741,5.17197,2600.8,2600.4,2.4909]
[1723864404948,0.09602128,2600.7,2600.4,2.4909]
[1723864405408,5.17197,2600.8,2600.4,2.4909]
[1723864406040,0.09567701,2600.7,2600.4,2.4909]
[1723864406280,5.17197,2600.8,2600.4,2.4909]
[1723864406575,0.09567701,2600.7,2600.4,2.4909]
[1723864406779,0.09567701,2600.7,2600.4,3.05148263]
[1723864406981,1.327,2600.8,2600.5,2.4909]
[1723864407135,0.09562376,2600.6,2600.5,2.4909]
[1723864407482,0.09562376,2600.6,2600.4,4.40613263]
[1723864407483,1.327,2600.9,2600.7,2.4909]
[1723864412513,3.8444,2601.2,2600.0,7.32]
[1723864412514,0.7,2600.7,2600.0,7.32]
[1723864412803,3.84557,2600.4,2600.1,2.3957]
[1723864413107,1.327,2600.4,2600.1,2.3957]
[1723864413308,5.17258,2600.4,2600.1,2.3957]
[1723864413468,0.09508445,2600.3,2600.1,2.3957]
[1723864415802,1.327,2600.2,2600.1,2.3957]
[1723864416209,1.422079,2600.2,2600.1,2.3957]
[1723864420944,5.267929,2600.2,2600.1,2.3957]
[1723864421110,6.1792949,2600.2,2600.1,2.3957]
[1723864422213,6.1792949,2600.2,2599.8,2.3957]
[1723864422214,7.69244,2600.0,2599.8,2.3957]
[1723864422411,9.01949,2600.0,2599.8,2.3957]
[1723864422603,0.09497837,2599.9,2599.8,2.3957]
[1723864425244,3.94127837,2599.9,2599.8,2.3957]
[1723864425446,3.94127837,2599.9,2599.8,2.2957]
[1723864425940,0.09497837,2599.9,2599.8,2.2957]
[1723864426341,3.94127837,2599.9,2599.8,2.2957]
[1723864428289,3.94127837,2599.9,2599.5,0.1272948]
[1723864428490,1.327,2599.8,2599.6,2.375]
[1723864428995,0.09483711,2599.7,2599.6,2.375]
[1723864432326,0.09483711,2599.7,2599.6,3.74192348]
[1723864432618,3.84579,2600.3,2599.6,3.74192348]
[1723864432619,5.17289,2600.2,2599.6,5.21366348]
[1723864432803,5.17289,2600.2,2599.7,2.375]
[1723864432977,1.327,2600.0,2599.7,2.375]
[1723864433177,3.94115349,2600.1,2599.7,2.375]
[1723864433380,0.09495317,2599.9,2599.7,2.375]
[1723864433672,1.327,2600.0,2599.7,2.375]
[1723864434117,0.09505256,2599.9,2599.7,2.375]
[1723864438825,0.09505256,2599.9,2599.8,3.84644]
[1723864438991,0.09505256,2599.9,2599.8,10.06788]
[1723864439187,2.027,2600.4,2599.9,2.375]
[1723864439444,2.027,2600.4,2600.0,0.622144]
[1723864439648,2.027,2600.4,2599.9,2.375]
[1723864440011,2.027,2600.4,2599.9,6.22123]
[1723864440671,2.027,2600.4,2600.0,3.84614]
[1723864441434,0.7,2600.4,2600.0,3.84614]
[1723864441746,1.327,2600.3,2600.0,3.84614]
[1723864442321,1.327,2600.3,2599.9,2.375]
[1723864442828,1.327,2600.1,2599.9,2.375]
[1723864443552,0.09169533,2600.0,2599.9,2.375]
[1723864444817,0.61815286,2600.0,2599.6,2.375]
[1723864445047,1.327,2599.8,2599.6,2.375]
[1723864445456,0.0915706,2599.7,2599.6,2.375]
[1723864449048,0.0915706,2599.7,2599.5,0.1272948]
[1723864453237,1.327,2599.6,2599.5,0.1272948]
[1723864453441,5.17374,2599.6,2599.5,0.1272948]
[1723864453642,5.26551323,2599.6,2599.5,0.1272948]
[1723864455023,1.41877323,2599.6,2599.5,0.1272948]
[1723864455397,0.09177323,2599.6,2599.5,0.1272948]
[1723864455885,0.60826206,2599.6,2599.5,0.1272948]
[1723864458223,0.09177323,2599.6,2599.5,0.1272948]
[1723864458559,0.09177323,2599.6,2599.5,2.4933948]
[1723864458762,1.327,2599.8,2599.5,2.4933948]
[1723864458997,0.09148413,2599.7,2599.5,2.4933948]
[1723864459570,0.09148413,2599.7,2599.5,10.1869948]
[1723864459766,0.09148413,2599.7,2599.5,6.3401848]
[1723864464273,0.09148413,2599.7,2599.5,4.99281428]
[1723864464473,0.09148413,2599.7,2599.6,6.21284]
[1723864464682,1.327,2600.0,2599.5,0.1272948]
[1723864464683,1.327,2599.8,2599.5,0.1272948]
[1723864464976,1.327,2599.6,2599.5,0.1272948]
[1723864465203,1.41842717,2599.6,2599.5,0.1272948]
[1723864468884,0.09142717,2599.6,2599.5,0.1272948]
[1723864469088,1.327,2599.8,2599.5,0.1272948]
[1723864469328,0.09150872,2599.7,2599.5,0.1272948]
[1723864470748,1.327,2599.6,2599.5,0.1272948]
[1723864470902,1.41846779,2599.6,2599.5,0.1272948]
[1723864472103,5.79171557,2599.6,2599.5,0.1272948]
[1723864475255,0.61797557,2599.6,2599.5,0.1272948]
[1723864475550,0.09146779,2599.6,2599.5,0.1272948]
[1723864475763,1.327,2599.8,2599.5,2.6128948]
[1723864475914,0.09148257,2599.7,2599.5,2.6128948]
[1723864476859,1.41848257,2599.7,2599.5,2.6128948]
[1723864478074,1.41848257,2599.7,2599.5,0.1272948]
[1723864478290,1.94496683,2599.7,2599.5,0.1272948]
[1723864478434,1.41848257,2599.7,2599.5,0.1272948]
[1723864479926,5.26517257,2599.7,2599.5,0.1272948]
[1723864480381,1.41848257,2599.7,2599.5,2.6128948]
[1723864483416,0.09148257,2599.7,2599.5,2.6128948]
[1723864483697,6.12255,2600.2,2599.9,2.4856]
[1723864483698,1.327,2600.2,2599.9,2.4856]
[1723864484198,0.7,2600.3,2599.6,2.4856]
[1723864484199,1.327,2600.0,2599.6,2.4856]
[1723864484383,1.327,2599.7,2599.5,0.1272948]
[1723864484587,1.844338,2599.7,2599.5,0.1272948]
[1723864485071,5.690958,2599.7,2599.5,0.1272948]
[1723864487479,9.01981,2599.9,2599.6,2.4856]
[1723864487707,5.17338,2599.9,2599.6,2.4856]
[1723864488118,1.327,2599.7,2599.5,0.1272948]
[1723864488531,0.08807532,2599.6,2599.5,0.1272948]
[1723864490784,1.217338,2599.8,2599.5,0.1272948]
[1723864490984,0.08802997,2599.7,2599.5,0.1272948]
[1723864493629,0.08802997,2599.7,2599.5,3.9741048]
[1723864493927,0.08802997,2599.7,2599.6,2.3053]
[1723864494112,1.327,2599.9,2599.6,2.3053]
[1723864494322,0.0880198,2599.7,2599.6,2.3053]
[1723864494491,1.327,2599.9,2599.6,2.3053]
[1723864495001,0.0880731,2599.8,2599.6,2.3053]
[1723864503369,0.0880731,2599.8,2599.5,0.1272948]
[1723864503700,0.61421041,2599.8,2599.5,0.1272948]
[1723864503998,5.17368,2599.7,2599.5,0.1272948]
[1723864504156,0.08803671,2599.6,2599.5,0.1272948]
[1723864504856,1.327,2600.1,2599.7,2.3053]
[1723864505194,1.327,2600.1,2599.7,6.15188]
[1723864505559,5.17302,2600.1,2599.7,2.3053]
[1723864506483,6.074916,2600.1,2599.7,2.3053]
[1723864506866,2.228896,2600.1,2599.7,2.3053]
[1723864507081,1.327,2600.1,2599.7,2.3053]
[1723864507598,5.17304,2600.1,2599.7,2.3053]
[1723864507765,1.327,2600.1,2599.7,6.15187]
[1723864508164,1.327,2599.9,2599.7,2.3053]
[1723864510508,1.327,2599.9,2599.5,6.3461748]
[1723864511116,5.17333,2599.9,2599.5,2.4993948]
[1723864511313,6.38211,2599.9,2599.5,2.4993948]
[1723864511841,3.84649,2599.8,2599.5,2.4993948]
[1723864512044,5.1736,2599.7,2599.5,2.4993948]
[1723864512816,4.5461,2600.1,2599.5,2.4993948]
[1723864513030,1.327,2600.0,2599.7,2.3721]
[1723864518650,0.08812992,2599.9,2599.7,2.3721]
[1723864520181,0.08812992,2599.9,2599.7,6.21858]
[1723864520751,0.08812992,2599.9,2599.7,2.3721]
[1723864520965,0.08812992,2599.9,2599.7,6.21867]
[1723864521180,0.08812992,2599.9,2599.8,6.21854]
[1723864521550,1.327,2600.3,2599.9,2.3721]
[1723864524394,5.17272,2600.3,2599.9,2.3721]
[1723864524561,1.327,2600.1,2599.8,2.3721]
[1723864525278,1.327,2600.1,2599.6,2.3721]
[1723864525810,1.327,2599.7,2599.5,0.1272948]
[1723864526139,7.54202,2599.7,2599.5,0.1272948]
[1723864526248,8.366222,2599.7,2599.5,0.1272948]
[1723864526593,3.84674,2599.6,2599.5,0.1272948]
[1723864527359,0.7,2599.8,2599.6,2.3721]
[1723864527569,8.39223,2600.1,2599.6,2.3721]
[1723864527768,1.327,2600.0,2599.6,2.3721]